Cogmind - Beta 13 @@@ ROGUE MODE // 2024.07.29 @ 15:06:06 Player: Noggity Result: Destroyed by as-92162 with Assembled Rifle Performance ------------- Evolutions (1) 500 Regions Visited (5) 1000 Robots Destroyed (38) 190 Value Destroyed (856) 856 Prototype IDs (2) 40 Alien Tech Used (0) 0 Bonus (21) 21 TOTAL SCORE: 2607 Bonus ------- High Alert Combat Kills 38 Friendly Fire -17 Cogmind --------- Core Integrity 0/400 Matter 82/300 Energy 99/100 System Corruption 7% Temperature Cool (0) Movement Core (50) Location -9/Exiles Parts ------- > --- POWER (1) -------- (None) > --- PROPULSION (3) --- (None) > --- UTILITY (3) ------ (None) > --- WEAPON (2) ------- (None) > --- INVENTORY (5) ---- High-capacity Storage Unit Heavy EM Pulse Gun Spread Laser Peak State ------------ > --- POWER ------------ Ion Engine > --- PROPULSION ------- Flight Unit Improved Flight Unit Improved Flight Unit > --- UTILITY ---------- Heat Sink Small Storage Unit Seismic Detector > --- WEAPON ----------- Spread Laser Mini Grenade Launcher > --- INVENTORY -------- Reinforced Deuterium Engine Signal Interpreter Transport Network Coupler Light Armor Plating Light Armor Plating Heavy EM Pulse Gun Spread Laser [Rating: 16] Favorites ----------- Power Ion Engine Engine Ion Engine Power Core Light Nuclear Core Propulsion Aluminum Leg Treads Light Treads Leg Aluminum Leg Wheel Wheel Flight Unit Improved Flight Unit Utility Small Storage Unit Device Seismic Detector Storage Small Storage Unit Protection Light Armor Plating Weapon Spread Laser Energy Gun Spread Laser Ballistic Gun Heavy Assault Rifle Launcher Mini Grenade Launcher Special Weapon Mining Laser Build | -11 -10 -10 -9 -9 -9 ------- Run | Yrd Mat Min Mat Min Exi Slots Evolved 2 | . . . 2 . . Power . | . . . . . . Propulsion 1 | . . . 1 . . Utility 1 | . . . 1 . . Weapon . | . . . . . . Parts Attached 65 | 11 8 9 31 1 5 Power 13 | 4 . 4 5 . . Engine 10 | 4 . 1 5 . . Core 3 | . . 3 . . . Reactor . | . . . . . . Propulsion 20 | 3 3 3 10 . 1 Treads 5 | . . . 5 . . Leg 8 | 2 2 3 1 . . Wheel 1 | 1 . . . . . Hover . | . . . . . . Flight 6 | . 1 . 4 . 1 Utility 17 | 2 2 . 10 . 3 Device 7 | 1 2 . 4 . . Storage 4 | 1 . . 1 . 2 Processor . | . . . . . . Hackware . | . . . . . . Protection 6 | . . . 5 . 1 Artifact . | . . . . . . Weapon 15 | 2 3 2 6 1 1 Energy Gun 6 | 2 1 1 2 . . Energy Cannon . | . . . . . . Ballistic Gun 4 | . 1 . 3 . . Ballistic Cannon . | . . . . . . Launcher 3 | . . . 1 1 1 Special Weapon 2 | . 1 1 . . . Impact Weapon . | . . . . . . Slashing Weapon . | . . . . . . Piercing Weapon . | . . . . . . Special Melee Weapon . | . . . . . . Unidentified Prototypes 2 | . . . 2 . . Parts Lost 24 | . 2 11 5 . 6 Power 5 | . . 3 1 . 1 Propulsion 9 | . . 4 3 . 2 Utility 5 | . 1 1 1 . 2 Weapon 5 | . 1 3 . . 1 Highest Loss Streak 6 | . 2 6 2 . 6 To Critical Strikes . | . . . . . . Average Slot Usage (%) 87 | . 98 72 81 88 92 Engine 9 | . 14 5 7 11 10 Treads 7 | . . . 19 . . Leg 10 | . 27 28 2 . . Flight 9 | . . . 4 22 29 Device 13 | . 13 . 12 22 20 Storage 10 | . 14 14 5 11 10 Protection 3 | . . . 9 . . Energy Gun 11 | . 24 7 3 11 10 Ballistic Gun 5 | . 2 2 13 . . Launcher 3 | . . . 2 11 9 Naked Turns 16 | . . 5 . . 11 Heaviest Build 51 | 15 16 16 20 16 51 Greatest Support 60 | 20 20 20 60 9 14 Greatest Overweight (x) 3 | . 3 . 2 1 3 Average Overweight (x) . | . . . . 1 . Largest Inventory Capacity 20 | 8 8 8 8 8 20 Average Capacity 7 | 6 8 7 6 8 8 Most Carried 8 | 7 8 8 8 7 8 Average Carried 5 | 3 7 2 5 7 5 Final Capacity 8 | 8 8 5 8 8 5 Final Carried 8 | 7 8 2 7 7 3 Class Distribution -------------------- 73% | Mutant 26% | Scavenger-Mutant Dominant Class ---------------- Mutant | -10/Materials Mutant | -10/Mines Scavenger-Mutant | -9/Materials Mutant | -9/Mines Mutant | -9/Exiles Resources | -11 -10 -10 -9 -9 -9 ----------- Run | Yrd Mat Min Mat Min Exi Matter Collected 1009 | 306 109 83 483 28 . Remotely 47 | . 47 . . . . Salvage Created 1091 | 101 224 35 713 . 18 Parts 81 | 4 15 . 62 . . Haulers Intercepted 2 | . . . 2 . . Recyclers Shooed 3 | . 1 . 2 . . Parts Field Recycled . | . . . . . . Retrieved Matter . | . . . . . . Parts Self-Destructed . | . . . . . . Prevented . | . . . . . . Kills | -11 -10 -10 -9 -9 -9 ------- Run | Yrd Mat Min Mat Min Exi Combat Hostiles Destroyed 30 | . 7 4 17 . 2 Guns 24 | . 7 3 13 . 1 Cannons 1 | . . 1 . . . AOE 5 | . . . 4 . 1 Classes Destroyed 12 | 2 2 2 6 . . Worker 3 | . . . 3 . . Builder 2 | . . . 2 . . Tunneler 1 | 1 . . . . . Hauler 2 | . . . 2 . . Recycler 2 | 1 . . 1 . . Operator 1 | . . . 1 . . Watcher 2 | . . . 2 . . Swarmer 9 | . 3 . 6 . . Grunt 9 | . 4 . 5 . . Sentry 6 | . . . 6 . . Demolisher 1 | . . 1 . . . Assembled 5 | . . 3 . . 2 Best Kill Streak 7 | 2 3 2 7 . 2 Combat Bots Only 4 | . 3 2 4 . 2 Max Kills in Single Turn 3 | 1 1 1 3 . 1 Gunslinging . | . . . . . . Exploded 2 | . . . 2 . 1 Melee . | . . . . . . Uniques/NPCs Destroyed . | . . . . . . Combat | -11 -10 -10 -9 -9 -9 -------- Run | Yrd Mat Min Mat Min Exi Hostile Shots Fired 245 | . 38 49 119 . 39 Missed 69 | . 9 8 37 . 15 Damage Taken 2681 | . 353 885 1092 . 351 Core 645 | . 52 189 240 . 164 Absorbed by Shields . | . . . . . . Core Remaining (%) 51 | 100 . 3 . . . Volleys Fired 103 | 4 27 15 52 . 5 Largest 2 | 2 2 2 2 . 2 Hottest 150 | 90 150 150 130 . 95 Shots Fired 185 | 8 48 21 100 . 8 Gun 163 | 8 46 19 84 . 6 Cannon . | . . . . . . Launcher 18 | . . . 16 . 2 Special 4 | . 2 2 . . . Kinetic 80 | . 12 5 63 . . Thermal 76 | 4 29 16 21 . 6 Explosive 18 | . . . 16 . 2 Electromagnetic 11 | 4 7 . . . . Robot Hit Streak 14 | 2 8 4 14 . 3 Robot Miss Streak 8 | 2 4 3 7 . 8 Penetration Max . | . . . . . . Secondary Targets 1 | . 1 . . . . Max Gunslinging Chain 1 | . 1 . . . . Shots Hit Robots 113 | 3 21 12 72 . 5 Core Hits 90 | 3 10 8 61 . 8 Critical Kills . | . . . . . . Critical Parts Destroyed . | . . . . . . Critical Strikes 1 | . . 1 . . . Burn 1 | . . 1 . . . Melee Attacks . | . . . . . . Impact . | . . . . . . Slashing . | . . . . . . Piercing . | . . . . . . Sneak Attacks . | . . . . . . Combat Hostiles . | . . . . . . Follow-up Attacks . | . . . . . . Damage Inflicted 2237 | 39 271 214 1636 . 77 Guns 1448 | 37 265 178 927 . 41 Cannons . | . . . . . . Explosions 745 | . . . 709 . 36 Melee . | . . . . . . Ramming 20 | 2 6 12 . . . Kinetic 815 | . 78 49 688 . . Thermal 586 | . 153 153 239 . 41 Explosive 745 | . . . 709 . 36 Electromagnetic 71 | 37 34 . . . . Impact . | . . . . . . Slashing . | . . . . . . Piercing . | . . . . . . Highest Corruption 7 | . . 4 7 7 7 Average Corruption 6 | . . 4 5 7 7 Corruption Purged . | . . . . . . Corruption Blocked . | . . . . . . Effects 23 | . . 4 3 4 12 Message Errors 4 | . . 1 . 2 1 Matter Fused 1 | . . . . 1 . Heat Flow Errors 5 | . . 1 . 1 3 Energy Discharges 2 | . . 1 1 . . Data Loss (minor) 3 | . . . . . 3 Data Loss (major) 2 | . . . 1 . 1 Misfires 2 | . . . . . 2 Alerts 3 | . . 1 . . 2 Weapon Failures 1 | . . . 1 . . Overload Shots . | . . . . . . Overflow Damage 16 | . . . 16 . . Projectiles . | . . . . . . Explosions 16 | . . . 16 . . Melee . | . . . . . . Knockbacks . | . . . . . . Impact . | . . . . . . Kinetic . | . . . . . . Secondary . | . . . . . . Self-Inflicted Damage 241 | . . . 204 . 37 Shots 7 | . . . 6 . 1 Rammed . | . . . . . . Targets Rammed 5 | 1 1 3 . . . Kicked 5 | 1 1 3 . . . Crushed . | . . . . . . Highest Temperature 335 | 90 216 101 335 125 264 Average Temperature 76 | 41 99 33 84 65 60 Received Heat Transfer 546 | . 189 80 237 . 40 Effects 3 | . . . 3 . . Interference 3 | . . . 3 . . Siege Activations . | . . . . . . Robots Corrupted . | . . . . . . Combat Hostiles . | . . . . . . Parts Fried . | . . . . . . Impact Corruptions . | . . . . . . Robots Melted . | . . . . . . Combat Hostiles . | . . . . . . Parts Melted 1 | . 1 . . . . Heat Transferred 1241 | . 407 494 295 . 45 Parts Sabotaged . | . . . . . . Parts Stolen . | . . . . . . Parts Stripped . | . . . . . . Power Chain Reactions . | . . . . . . Alert | -11 -10 -10 -9 -9 -9 ------- Run | Yrd Mat Min Mat Min Exi Peak Influence 554 | 10 130 50 554 216 . Initial 216 | . 6 50 . 216 . Average 129 | 2 32 4 233 216 . Maximum Alert Level 2 | . . . 2 1 . Low Security (%) 69 | 100 100 100 47 . . Level 1 20 | . . . 31 100 . Level 2 9 | . . . 20 . . Level 3 . | . . . . . . Level 4 . | . . . . . . Level 5 . | . . . . . . High Security . | . . . . . . Max Security . | . . . . . . Squads Dispatched 5 | . 2 . 3 . . Investigation 2 | . 1 . 1 . . Extermination . | . . . . . . Reinforcement 3 | . 1 . 2 . . Assault . | . . . . . . Garrison . | . . . . . . Intercept . | . . . . . . Searches Triggered . | . . . . . . Construction Impeded 1 | . . . 1 . . Haulers Reinforced . | . . . . . . Active Scanning Responses . | . . . . . . Cargo Convoy Interrupts . | . . . . . . Stealth | -11 -10 -10 -9 -9 -9 --------- Run | Yrd Mat Min Mat Min Exi Distress Signals 4 | . 1 . 3 . . Communications Jammed . | . . . . . . Distress Signals . | . . . . . . Times Spotted 59 | . 8 13 30 . 8 Peak Tracking Total 9 | . 3 7 8 . 9 Tactical Retreats 5 | . 1 1 3 . . Traps | -11 -10 -10 -9 -9 -9 ------- Run | Yrd Mat Min Mat Min Exi Traps Triggered 2 | . 1 . 1 . . Indirectly . | . . . . . . Trap Hack Attempts . | . . . . . . Triggered . | . . . . . . Disarmed . | . . . . . . Reprogrammed . | . . . . . . Reused . | . . . . . . Traps Extracted . | . . . . . . Installed . | . . . . . . Triggered . | . . . . . . Machines | -11 -10 -10 -9 -9 -9 ---------- Run | Yrd Mat Min Mat Min Exi Machines Disabled 8 | . . . 4 . 4 Max in Single Turn 2 | . . . 2 . 2 Machines Repaired . | . . . . . . Machines Dismantled . | . . . . . . Machines Sabotaged . | . . . . . . Overloaded Fab Kills . | . . . . . . Hacking | -11 -10 -10 -9 -9 -9 --------- Run | Yrd Mat Min Mat Min Exi Machines Accessed 6 | . . . 3 . 3 Terminals 3 | . . . 3 . . Fabricators . | . . . . . . Repair Stations . | . . . . . . Recycling Units . | . . . . . . Scanalyzers . | . . . . . . Garrison Access . | . . . . . . Total Hacks 43 | . . . 10 . 33 Successful 37 | . . . 4 . 33 Failed 5 | . . . 5 . . Catastrophic 2 | . . . 2 . . Database Lockouts 1 | . . . 1 . . Manual 7 | . . . 7 . . Terminals 10 | . . . 10 . . Fabricators . | . . . . . . Repair Stations . | . . . . . . Recycling Units . | . . . . . . Scanalyzers . | . . . . . . Garrison Access . | . . . . . . Terminal Hacks 36 | . . . 3 . 33 Record 35 | . . . 2 . 33 Emergency Access Points 1 | . . . 1 . . Fabricator Hacks . | . . . . . . Repair Station Hacks . | . . . . . . Recycling Unit Hacks . | . . . . . . Scanalyzer . | . . . . . . Garrison Access Hacks . | . . . . . . Unauthorized Hacks 1 | . . . 1 . . Terminals 1 | . . . 1 . . Botnet 1 | . . . 1 . . Fabricators . | . . . . . . Repair Stations . | . . . . . . Recycling Units . | . . . . . . Scanalyzers . | . . . . . . Garrison Access . | . . . . . . Data Cores Recovered . | . . . . . . Used . | . . . . . . Hacking Detections 3 | . . . 3 . . Full Trace Events 1 | . . . 1 . . Feedback Events . | . . . . . . Feedback Blocked . | . . . . . . Robot Schematics Acquired . | . . . . . . Robots Built . | . . . . . . Authchips . | . . . . . . Time . | . . . . . . Total Robot Build Rating . | . . . . . . Part Schematics Acquired . | . . . . . . Parts Built . | . . . . . . Authchips . | . . . . . . Time . | . . . . . . Total Part Build Rating . | . . . . . . Parts Repaired . | . . . . . . Time . | . . . . . . Parts Recycled . | . . . . . . Recycled Matter . | . . . . . . Retrieved Matter . | . . . . . . Retrieved Components . | . . . . . . Parts Scanalyzed . | . . . . . . Part Schematics Acquired . | . . . . . . Parts Damaged . | . . . . . . Bothacking | -11 -10 -10 -9 -9 -9 ------------ Run | Yrd Mat Min Mat Min Exi Used RIF Installer . | . . . . . . Robots Hacked . | . . . . . . Non-combat . | . . . . . . Combat . | . . . . . . Robot Hacks Applied . | . . . . . . Relay Couplers Released . | . . . . . . Fabnet Peak Effective % . | . . . . . . Robots Rewired . | . . . . . . Allies Hacked . | . . . . . . Hacks Repelled . | . . . . . . Allies | -11 -10 -10 -9 -9 -9 -------- Run | Yrd Mat Min Mat Min Exi Total Allies 2 | . . 2 . . . Largest Group 2 | . . 2 . . . Highest-Rated Group 47 | . . 47 . . . Highest-Rated Ally 31 | . . 31 . . . Total Orders . | . . . . . . Ally Attacks 21 | . . 21 . . . Total Damage 298 | . . 298 . . . Kills 4 | . . 4 . . . Allies Corrupted . | . . . . . . Allies Melted . | . . . . . . Intel | -11 -10 -10 -9 -9 -9 ------- Run | Yrd Mat Min Mat Min Exi Robot Analysis Total . | . . . . . . Derelict Logs Recovered 1 | . . 1 . . . Drone Launches . | . . . . . . Drone Recoveries . | . . . . . . Exploration | -11 -10 -10 -9 -9 -9 ------------- Run | Yrd Mat Min Mat Min Exi Turns Passed 1990 | 107 480 188 721 104 390 Spaces Moved 1019 | 63 78 113 336 90 339 Core 37 | 3 . 12 . . 22 Treads 193 | . . . 193 . . Legs 316 | 58 73 101 84 . . Wheels 2 | 2 . . . . . Hover . | . . . . . . Flight 471 | . 5 . 59 90 317 Fastest Speed 50 | 50 120 50 110 112 50 Average Speed 121 | 115 130 112 142 112 105 Slowest Speed 290 | 120 290 120 220 112 253 Overloaded Moves . | . . . . . . Propulsion Burnouts . | . . . . . . Robots Hopped . | . . . . . . Cave-ins Triggered . | . . . . . . Exploration Rate (%) 28 | 4 12 30 34 29 62 Regions Visited 5 Branch Regions 3 Pre-discovered Areas 1 | . . . . . 1 Known Exits Taken 1 | . . . 1 . . Unknown Exits Taken 4 | 1 1 1 . 1 . Scrap Searched 2 | . . 1 . 1 . Spaces Dug 2 | . 2 . . . . Terrain Destroyed 109 | . 2 1 85 . 21 Melee . | . . . . . . Projectile 3 | . 2 1 . . . AOE 106 | . . . 85 . 21 Terrain Rammed . | . . . . . . Walls Destroyed . | . . . . . . Machines Disabled . | . . . . . . Actions | -11 -10 -10 -9 -9 -9 --------- Run | Yrd Mat Min Mat Min Exi Total 1568 | 84 404 147 475 92 366 Wait 312 | . 274 6 24 2 6 Move 1015 | 63 77 112 335 89 339 Hop . | . . . . . . Pick Up 35 | 5 10 2 14 . 4 Fast Attach 24 | 8 . 1 15 . . Attach 18 | . 2 8 5 . 3 Detach 4 | 1 . . 2 . 1 Swap 24 | 3 6 . 12 1 2 Drop 29 | . 7 . 16 . 6 Fire 103 | 4 27 15 52 . 5 Melee . | . . . . . . Ram . | . . . . . . Kick 4 | . 1 3 . . . Crush . | . . . . . . Escape Stasis . | . . . . . . Rewire . | . . . . . . Trap . | . . . . . . Miscellaneous . | . . . . . . Route ------- -11/Scrapyard -10/Materials -10/Mines -9/Materials (discovered 2 exits: *Min x2) -9/Mines -9/Exiles History --------- Turn | Location | Event 8 | -11/Scrapyard | Discovered new exit (range 15) 108 | -11/Scrapyard | Entered Materials 301 | -10/Materials | Build established: Mutant 581 | -10/Materials | Discovered new exit (range 7) 588 | -10/Materials | Entered Mines 589 | -10/Mines | Assembled infested the area 608 | -10/Mines | Core integrity fell below 50% 640 | -10/Mines | Learned location of 1 exit from Materials 645 | -10/Mines | Lost 6 parts (1p2n1u2w) 668 | -10/Mines | Core integrity fell below 20% 713 | -10/Mines | Lost 3 parts (1p1n1w) 770 | -10/Mines | Discovered new exit (range 6) 771 | -10/Mines | Released all parts (3) 776 | -10/Mines | Entered Materials 776 | -9/Materials | Evolved 2 slots: Propulsion x1, Utility x1 777 | -9/Materials | Identified exit to Mines 792 | -9/Materials | Central database locked down 1127 | -9/Materials | Discovered exit to Mines (range 7) 1202 | -9/Materials | Build established: Scavenger-Mutant 1353 | -9/Materials | Core integrity fell below 50% 1497 | -9/Materials | Entered Mines 1595 | -9/Mines | Deemed a non-threat by the Exiles lab entrance 1596 | -9/Mines | Discovered new exit (range 5) 1601 | -9/Mines | Entered Exiles 1643 | -9/Exiles | Met 8R-AWN 1667 | -9/Exiles | Met EX-HEX 1670 | -9/Exiles | Build established: Mutant 1776 | -9/Exiles | Met EX-DEC 1812 | -9/Exiles | Learned location of Zion (-6) 1856 | -9/Exiles | Met EX-BIN 1945 | -9/Exiles | Attacked by the Exiles 1980 | -9/Exiles | Released all parts (4) 1985 | -9/Exiles | Core integrity fell below 20% 1991 | -9/Exiles | Destroyed by as-92162 with Assembled Rifle Last Messages --------------- 01966_ Flight Unit destroyed. 01967_ Mni. Grenade Launcher destroyed. 01967_ Dropped Rigged Rnf. Deuterium Engine. 01971_ Rigged Rnf. Deuterium Engine explodes. 01971_ as-19814 destroyed. 01977_ Imp. Flight Unit destroyed. 01977_ Lgt. Armor Plating destroyed. 01978_ Ion Engine destroyed. 01978_ as-95879 destroyed. 01980_ Released Sml. Storage Unit. 01980_ Released Heat Sink. 01980_ Released Spread Laser. 01980_ Released Imp. Flight Unit. 01981_ System corrupted: Component data lost. 01985_ Penetrated by HV Slug. 01985_ HV Slug penetrates Machine. 01987_ HV Slug penetrates Wall. 01989_ Penetrated by HV Slug. 01989_ HV Slug penetrates Machine. 01989_ HV Slug penetrates Wall. Map ----- +----------------------------------------------------+ | ????????????????######### ## ""##?????????? | | ????????????????#""""""## ### ####??????????? | | ????????????????#"""" ## = #??###?????????????? | | ????????????????#""X" [!! #??????????????????? | | ????????????????#" % #??????????????????? | | ????????????????#" #" #??????????????????? | | ????????????????#""""""## #?########?????????? | | ????????????????##"###### #?#"""""""?????????? | | ???????????????? "?????# % #?#"""""""#????????? | | ???????????????""" ?????# #?#"""""""#????????? | | ???????????????""" ????## ###"" """"#????????? | | ?????????????????" ????#" """"#????????? | | ?????????????????##????#" """#????????? | | ??????????????????????## """#????????? | | ??????????????????????# """#????????? | | ????????########??????# % """#????????? | | ????????# """#??????# a """##???????? | | ????????#"" """#??????# a """""???????? | | ????????#"" #??????## a a """##???????? | | ????????#"" #???????## "X" """""???????? | | ????????#"" "#????????#" """ # ???????? | | ????????# ""#????????# """""""""#????????? | | ????????#"" ""#???????##" ###########????????? | | ????????### ###??????##"" #??????????????????? | | ####????### ###?######"" #??????????????????? | | """#####X# #"###"""""""@ g##?????????????????? | | """""" " "" ##????????????????? | | "" """ " #####"""?????????? | | " " " ""????????? | | "" "????? | | " """?? | | # " "?? | | ## " "#? | | ?##" ""# | | ??#""" """""" "" | | ?##" ######""" | | ?#"" ""##????#####""" | | ##""" """##??????????#""" | | #""" """##???????????#"""" | | #""" ""#???????????##"" | | #"" ########??####"""" | | #""" ## ####""" | | #"" """" | | ##"" | | ?#"""" | | ?## " | | ??#" " "" """ | | ??#"""" ""## ##""" " " ""#" | | ??#"" ""#### ######""" """##""""""" | | ??#" """"##??# #????###""""########## | +----------------------------------------------------+ Best States ------------- Heat Dissipation 38 Energy Generation 14 Energy Capacity 250 Matter Stores 300 Matter Capacity 300 Sight Range 16 Terrain Scan Density 10 Armor Coverage 300 Evasion (%) 55 Recoil Reduction 3 Item Schematics ----------------- None Robot Schematics ------------------ None Fabricated ------------ Nothing Alien Tech Used ----------------- None Achievements -------------- Close Call Maybe Next Time I'll Detach My Launcher Challenges ------------ None Game ------ Seed PotentialSlugInverter Manual? 0 Play Time 00:35:24 Cumulative 11.0 hours Start 2024.07.29 @ 14:31:07 End 2024.07.29 @ 15:06:06 Sessions 1 Manual Loads 0 Difficulty Rogue Special Mode None Game No. 9 Rogue 9 Adventurer 0 Explorer 0 Win Type - Total 0 Types 0/0/0/0/0/0/0/0/0 Lore% 15 Gallery% 17 Achievement% 18 Wizard Run 0 Options --------- Layout 2 ASCII 0 Keyboard 1 Movement Numpad Keybinds 0 Fullscreen 1 Font 24/Smallcaps Map View 50x44 Zoom Use 0% Tactical HUD 1 Map Filters NONE Filters NONE Steam 1 RUN: 6346504d-dea3-41f0-8548-2769865393c0